bitfinex/quotes_BTCUSD_20260110
["timestamp","ask_amount","ask_price","bid_price","bid_amount"]
[1768076504027,0.01103338,90634.0,90621.0,0.01103496]
[1768076505647,0.01103326,90635.0,90622.0,0.01103484]
[1768076505824,0.01103338,90634.0,90621.0,0.01103496]
[1768076507831,0.0110335,90633.0,90620.0,0.37080623]
[1768076508050,0.0110335,90633.0,90620.0,0.078241]
[1768076509313,0.0110335,90633.0,90620.0,0.03311509]
[1768076510626,0.05759216,90634.0,90621.0,0.01103496]
[1768076511900,0.04655878,90634.0,90622.0,0.01103484]
[1768076512254,0.05759216,90634.0,90621.0,0.01103496]
[1768076513108,0.05759216,90634.0,90621.0,0.05973818]
[1768076513109,0.01103338,90634.0,90621.0,0.05973818]
[1768076515680,0.01103338,90634.0,90622.0,0.04877144]
[1768076516506,0.01103326,90635.0,90622.0,0.05980628]
[1768076516716,0.01103338,90634.0,90622.0,0.04877144]
[1768076517096,0.01103326,90635.0,90622.0,0.05980628]
[1768076517304,0.01103338,90634.0,90622.0,0.04877144]
[1768076528628,0.0110335,90633.0,90622.0,0.04877144]
[1768076530231,0.01103338,90634.0,90622.0,0.04877144]
[1768076530366,0.01107611,90634.0,90622.0,0.04877144]
[1768076538471,4.273e-05,90634.0,90622.0,0.05980628]
[1768076540342,0.01107611,90634.0,90622.0,0.04877144]
[1768076540674,4.273e-05,90634.0,90622.0,0.05980628]
[1768076541318,0.01107611,90634.0,90622.0,0.04877144]
[1768076542042,4.273e-05,90634.0,90622.0,0.04877144]
[1768076542768,4.273e-05,90634.0,90622.0,0.05980628]
[1768076543305,4.273e-05,90634.0,90623.0,0.01103472]
[1768076546953,4.273e-05,90634.0,90622.0,0.05980628]
[1768076547577,4.273e-05,90634.0,90623.0,0.01103472]
[1768076548628,4.273e-05,90634.0,90622.0,0.05980628]
[1768076549058,4.273e-05,90634.0,90623.0,0.01103472]
[1768076549266,4.273e-05,90634.0,90622.0,0.05980628]
[1768076549751,4.273e-05,90634.0,90623.0,0.01103472]
[1768076550373,4.273e-05,90634.0,90622.0,0.05980628]
[1768076555336,0.01107611,90634.0,90622.0,0.04877144]
[1768076555736,4.273e-05,90634.0,90622.0,0.05980628]
[1768076558412,0.01107611,90634.0,90622.0,0.04877144]
[1768076558867,4.273e-05,90634.0,90622.0,0.05980628]
[1768076559740,0.01107611,90634.0,90622.0,0.04877144]
[1768076568765,0.0110335,90633.0,90622.0,0.04877144]
[1768076569143,0.01107611,90634.0,90622.0,0.04877144]
[1768076570584,4.273e-05,90634.0,90622.0,0.05980628]
[1768076571307,0.01107611,90634.0,90622.0,0.04877144]
[1768076572766,4.273e-05,90634.0,90622.0,0.04877144]
[1768076575371,4.273e-05,90634.0,90622.0,0.05980628]
[1768076575568,0.01107611,90634.0,90622.0,0.04877144]
[1768076580401,4.273e-05,90634.0,90622.0,0.04877144]
[1768076580798,0.01107611,90634.0,90622.0,0.04877144]
[1768076581600,4.273e-05,90634.0,90622.0,0.05980628]
[1768076581765,0.01107611,90634.0,90622.0,0.04877144]
[1768076581966,4.273e-05,90634.0,90622.0,0.04877144]
[1768076582200,0.01107611,90634.0,90622.0,0.04877144]
[1768076582505,4.273e-05,90634.0,90622.0,0.04877144]
[1768076582728,0.01107611,90634.0,90622.0,0.04877144]
[1768076583020,4.273e-05,90634.0,90622.0,0.04877144]
[1768076583224,4.273e-05,90634.0,90622.0,0.05980628]
[1768076584889,4.273e-05,90634.0,90623.0,0.01103472]
[1768076585088,4.273e-05,90634.0,90622.0,0.05980628]
[1768076586346,4.273e-05,90634.0,90622.0,0.04877144]
[1768076586526,4.273e-05,90634.0,90622.0,0.05980628]
[1768076586726,0.01107611,90634.0,90622.0,0.04877144]
[1768076587674,4.273e-05,90634.0,90622.0,0.05980628]
[1768076589551,0.01107611,90634.0,90622.0,0.04877144]
[1768076589765,4.273e-05,90634.0,90622.0,0.05980628]
[1768076590679,0.01107611,90634.0,90622.0,0.04877144]
[1768076591272,4.273e-05,90634.0,90622.0,0.05980628]
[1768076591686,4.273e-05,90634.0,90622.0,0.04877144]
[1768076591830,4.273e-05,90634.0,90622.0,0.05980628]
[1768076593906,0.01107611,90634.0,90622.0,0.04877144]
[1768076594064,4.273e-05,90634.0,90622.0,0.05980628]
[1768076594801,0.01107611,90634.0,90622.0,0.04877144]
[1768076595002,4.273e-05,90634.0,90622.0,0.04877144]
[1768076595148,0.01107611,90634.0,90622.0,0.04877144]
[1768076596073,4.273e-05,90634.0,90622.0,0.05980628]
[1768076596406,0.01107611,90634.0,90622.0,0.04877144]
[1768076596617,4.273e-05,90634.0,90622.0,0.05980628]
[1768076596996,0.01107611,90634.0,90622.0,0.04877144]
[1768076597197,4.273e-05,90634.0,90622.0,0.05980628]
[1768076597630,4.273e-05,90634.0,90622.0,0.04877144]
[1768076597848,4.273e-05,90634.0,90622.0,0.05980628]
[1768076599583,0.01107611,90634.0,90622.0,0.04877144]
[1768076599796,4.273e-05,90634.0,90622.0,0.04877144]
[1768076599977,0.01107611,90634.0,90622.0,0.04877144]
[1768076600353,4.273e-05,90634.0,90622.0,0.05980628]
[1768076601988,0.01107611,90634.0,90622.0,0.04877144]
[1768076603697,4.273e-05,90634.0,90622.0,0.05980628]
[1768076605336,0.01107611,90634.0,90622.0,0.04877144]
[1768076605496,4.273e-05,90634.0,90622.0,0.05980628]
[1768076606983,4.273e-05,90634.0,90622.0,0.04877144]
[1768076607638,4.273e-05,90634.0,90622.0,0.05980628]
[1768076608811,0.01107611,90634.0,90622.0,0.04877144]
[1768076609034,0.05996241,90634.0,90621.0,0.01103496]
[1768076609588,0.04892903,90634.0,90622.0,0.01103484]
[1768076612904,0.04892903,90634.0,90623.0,0.01103472]
[1768076613106,0.04892903,90634.0,90622.0,0.01103484]
[1768076614003,0.04892903,90634.0,90623.0,0.01103472]
[1768076615108,0.04892903,90634.0,90622.0,0.01103484]
[1768076615705,0.04892903,90634.0,90623.0,0.01103472]
[1768076616484,0.04892903,90634.0,90622.0,0.01103484]
[1768076616828,0.04892903,90634.0,90623.0,0.01103472]
[1768076621138,0.04892903,90634.0,90624.0,0.0110346]
[1768076621370,0.04892903,90634.0,90623.0,0.01103472]
[1768076621499,0.04892903,90634.0,90622.0,0.01103484]
[1768076621904,0.04892903,90634.0,90623.0,0.01103472]
[1768076622748,0.04892903,90634.0,90622.0,0.01103484]
[1768076623511,0.04892903,90634.0,90621.0,0.01103496]
[1768076625282,0.04892903,90634.0,90622.0,0.01103484]
[1768076625681,0.04892903,90634.0,90623.0,0.01103472]
[1768076626605,0.04892903,90634.0,90622.0,0.01103484]
[1768076626727,0.04892903,90634.0,90623.0,0.01103472]
[1768076626934,0.04892903,90634.0,90622.0,0.01103484]
[1768076627306,0.04892903,90634.0,90623.0,0.01103472]
[1768076628234,0.04892903,90634.0,90622.0,0.01103484]
[1768076629187,0.04892903,90634.0,90623.0,0.01103472]
[1768076629518,0.04892903,90634.0,90622.0,0.01103484]
[1768076629722,0.04892903,90634.0,90623.0,0.01103472]
[1768076630526,0.04892903,90634.0,90622.0,0.01103484]
[1768076631566,0.04892903,90634.0,90623.0,0.01103472]
[1768076632900,4.273e-05,90634.0,90623.0,0.01103472]
[1768076634365,0.04668227,90633.0,90623.0,0.01103472]
[1768076635719,4.273e-05,90634.0,90623.0,0.01103472]
[1768076636336,4.273e-05,90634.0,90624.0,0.0110346]
[1768076636766,4.273e-05,90634.0,90623.0,0.01103472]
[1768076637258,4.273e-05,90634.0,90622.0,0.01103484]
[1768076637464,4.273e-05,90634.0,90623.0,0.01103472]
[1768076638957,0.046725,90634.0,90623.0,0.01103472]
[1768076639172,0.046725,90634.0,90624.0,0.0110346]
[1768076639377,0.046725,90634.0,90623.0,0.01103472]
[1768076640090,0.046725,90634.0,90624.0,0.0110346]
[1768076640297,0.046725,90634.0,90623.0,0.01103472]
[1768076640507,0.046725,90634.0,90624.0,0.0110346]
[1768076641214,0.046725,90634.0,90623.0,0.01103472]
[1768076641656,0.046725,90634.0,90624.0,0.0110346]
[1768076641855,0.046725,90634.0,90623.0,0.01103472]
[1768076642485,0.046725,90634.0,90624.0,0.0110346]
[1768076642978,0.046725,90634.0,90623.0,0.01103472]
[1768076643209,4.273e-05,90634.0,90623.0,0.04887796]
[1768076643433,4.273e-05,90634.0,90623.0,0.05991268]
[1768076644717,4.273e-05,90634.0,90623.0,0.04887796]
[1768076645789,4.273e-05,90634.0,90623.0,0.05991268]
[1768076646206,4.273e-05,90634.0,90623.0,0.04887796]
[1768076646581,4.273e-05,90634.0,90623.0,0.05991268]
[1768076646842,4.273e-05,90634.0,90623.0,0.04887796]
[1768076647051,4.273e-05,90634.0,90623.0,0.05991268]
[1768076647202,0.0459647,90633.0,90623.0,0.01103472]
[1768076649102,0.0459647,90633.0,90623.0,0.0108788]
[1768076650814,0.0459647,90633.0,90622.0,0.01103484]
[1768076652214,0.0459647,90633.0,90623.0,0.01103472]
[1768076652349,4.273e-05,90634.0,90622.0,0.01103484]
[1768076655184,4.273e-05,90634.0,90623.0,0.01103472]
[1768076655379,4.273e-05,90634.0,90622.0,0.01103484]
[1768076655719,4.273e-05,90634.0,90621.0,0.05811063]
[1768076656214,4.273e-05,90634.0,90622.0,0.01103484]
[1768076657386,0.0459647,90633.0,90622.0,0.01103484]
[1768076662532,0.0459647,90633.0,90623.0,0.01103472]
[1768076662945,4.273e-05,90634.0,90623.0,0.01103472]
[1768076663174,4.273e-05,90634.0,90622.0,0.05811051]
[1768076664179,4.273e-05,90634.0,90623.0,0.04707567]
[1768076664381,4.273e-05,90634.0,90623.0,0.05811039]
[1768076665198,4.273e-05,90634.0,90623.0,0.04707567]
[1768076665899,4.273e-05,90634.0,90623.0,0.05811039]
[1768076666250,4.273e-05,90634.0,90623.0,0.04707567]
[1768076666644,4.273e-05,90634.0,90623.0,0.05811039]
[1768076666841,4.273e-05,90634.0,90623.0,0.04707567]
[1768076667043,4.273e-05,90634.0,90623.0,0.05811039]
[1768076671396,4.273e-05,90634.0,90623.0,0.04707567]
[1768076671690,4.273e-05,90634.0,90623.0,0.05811039]
[1768076671873,4.273e-05,90634.0,90623.0,0.04707567]
[1768076672811,4.273e-05,90634.0,90623.0,0.05811039]
[1768076674652,4.273e-05,90634.0,90623.0,0.04707567]
[1768076676710,4.273e-05,90634.0,90623.0,0.05811039]
[1768076677124,4.273e-05,90634.0,90623.0,0.04707567]
[1768076677332,4.273e-05,90634.0,90623.0,0.05811039]
[1768076680347,4.273e-05,90634.0,90623.0,0.04707567]
[1768076681245,4.273e-05,90634.0,90623.0,0.05811039]
[1768076682235,4.273e-05,90634.0,90623.0,0.04707567]
[1768076682871,4.273e-05,90634.0,90623.0,0.05811039]
[1768076684148,4.273e-05,90634.0,90623.0,0.04707567]
[1768076686277,4.273e-05,90634.0,90623.0,0.05811039]
[1768076686637,4.273e-05,90634.0,90623.0,0.04707567]
[1768076687047,0.01107611,90634.0,90623.0,0.04707567]
[1768076687201,4.273e-05,90634.0,90623.0,0.04707567]
[1768076688477,0.01107611,90634.0,90623.0,0.04707567]
[1768076689175,0.0110335,90633.0,90623.0,0.04707567]
[1768076689478,0.01107611,90634.0,90623.0,0.04707567]
[1768076690023,0.01107611,90634.0,90623.0,0.04691974]
[1768076690979,4.273e-05,90634.0,90623.0,0.04691974]
[1768076697156,0.01107611,90634.0,90623.0,0.04691974]
[1768076697466,4.273e-05,90634.0,90623.0,0.04691974]
[1768076699998,4.273e-05,90634.0,90623.0,0.05795446]
[1768076700208,4.273e-05,90634.0,90623.0,0.04691974]
[1768076700734,0.01107611,90634.0,90623.0,0.04691974]
[1768076700858,4.273e-05,90634.0,90623.0,0.04691974]
[1768076701057,0.01107611,90634.0,90623.0,0.04691974]
[1768076701672,0.00050221,90636.0,90629.0,0.04721795]
[1768076709192,0.04701834,90635.0,90626.0,0.01103436]
[1768076710111,0.04701834,90635.0,90625.0,0.01103448]
[1768076710486,0.04701834,90635.0,90626.0,0.01103436]
[1768076710687,0.04701834,90635.0,90627.0,0.01103423]
[1768076711862,0.04701834,90635.0,90626.0,0.01103436]
[1768076713210,0.00050221,90636.0,90627.0,0.04745883]
[1768076721521,0.00050221,90636.0,90627.0,0.05849306]
[1768076721704,0.00050221,90636.0,90627.0,0.04745883]
[1768076721908,0.00050221,90636.0,90627.0,0.05849306]
[1768076722269,0.00050221,90636.0,90627.0,0.04745883]
[1768076722482,0.00050221,90636.0,90627.0,0.05849306]
[1768076722667,0.00050221,90636.0,90627.0,0.04745883]
[1768076723367,0.00050221,90636.0,90627.0,0.05849306]
[1768076727422,0.00050221,90636.0,90627.0,0.04745883]
[1768076728489,0.00050221,90636.0,90627.0,0.05849306]
[1768076728889,0.00050221,90636.0,90627.0,0.04745883]
[1768076729494,0.00050221,90636.0,90627.0,0.05849306]
[1768076730645,0.00050221,90636.0,90627.0,0.04745883]
[1768076730951,0.00050221,90636.0,90627.0,0.05849306]
[1768076731860,0.00050221,90636.0,90627.0,0.04745883]
[1768076732634,0.00050221,90636.0,90627.0,0.05849306]
[1768076732833,0.00050221,90636.0,90627.0,0.04745883]
[1768076736569,0.00050221,90636.0,90627.0,0.05849306]
[1768076737646,0.02208,90635.0,90627.0,0.05849306]
[1768076737849,0.02208,90635.0,90627.0,0.04745883]
[1768076738839,0.02208,90635.0,90627.0,0.05849306]
[1768076739315,0.02208,90635.0,90627.0,0.04745883]
[1768076740446,0.02208,90635.0,90627.0,0.05849306]
[1768076740687,0.02208,90635.0,90627.0,0.04745883]
[1768076741648,0.02208,90635.0,90627.0,0.05849306]
[1768076742696,0.02208,90635.0,90627.0,0.04745883]
[1768076742900,0.02208,90635.0,90627.0,0.05849306]
[1768076743381,0.02208,90635.0,90627.0,0.04745883]
[1768076743579,0.02208,90635.0,90627.0,0.05849306]
[1768076745067,0.02208,90635.0,90627.0,0.05844816]
[1768076749445,0.02208,90635.0,90627.0,0.04741393]
[1768076749566,0.02208,90635.0,90627.0,0.05844816]
[1768076750201,0.02208,90635.0,90627.0,0.01103423]
[1768076751491,0.02208,90635.0,90626.0,0.01103436]
[1768076751660,0.02208,90635.0,90627.0,0.01103423]
[1768076753723,0.02208,90635.0,90626.0,0.01103436]
[1768076757051,0.02208,90635.0,90627.0,0.01103423]
[1768076757274,0.02208,90635.0,90626.0,0.01103436]
[1768076757989,0.02208,90635.0,90627.0,0.01103423]
[1768076758115,0.02208,90635.0,90626.0,0.01103436]
[1768076758529,0.02208,90635.0,90627.0,0.01103423]
[1768076760558,0.02208,90635.0,90626.0,0.01103436]
[1768076762388,0.02208,90635.0,90627.0,0.01103423]
[1768076764179,0.02208,90635.0,90626.0,0.01103436]
[1768076764420,0.02208,90635.0,90626.0,0.06620584]
[1768076765252,0.02208,90635.0,90628.0,0.01103411]
[1768076770675,0.02208,90635.0,90626.0,0.06620608]
[1768076771552,0.02208,90635.0,90626.0,0.11452833]
[1768076771735,0.02208,90635.0,90627.0,0.0483223]
[1768076771939,0.00050221,90636.0,90627.0,0.0483223]
[1768076772339,0.02258221,90636.0,90628.0,0.01103411]
[1768076772595,0.02258221,90636.0,90626.0,0.01103436]
[1768076772825,0.02258221,90636.0,90628.0,0.01103411]
[1768076773490,0.00050221,90636.0,90628.0,0.01103411]
[1768076774267,0.00050221,90636.0,90627.0,0.01103423]
[1768076774467,0.00050221,90636.0,90628.0,0.01103411]
[1768076774651,0.00050221,90636.0,90629.0,0.01103399]
[1768076774845,0.00050221,90636.0,90627.0,0.01103423]
[1768076775051,0.00050221,90636.0,90628.0,0.01103411]
[1768076775470,0.00050221,90636.0,90627.0,0.01103423]
[1768076775695,0.00050221,90636.0,90628.0,0.01103411]
[1768076776092,0.00050221,90636.0,90629.0,0.01103399]
[1768076776299,0.00050221,90636.0,90628.0,0.01103411]
[1768076776667,0.00050221,90636.0,90629.0,0.01103399]
[1768076776849,0.00050221,90636.0,90628.0,0.01103411]
[1768076777304,0.01153657,90636.0,90628.0,0.01103411]
[1768076777715,0.01153657,90636.0,90629.0,0.01103399]
[1768076777899,0.01153657,90636.0,90628.0,0.01103411]
[1768076778142,0.01153657,90636.0,90629.0,0.01103399]
[1768076778606,0.01153657,90636.0,90628.0,0.01103411]
[1768076779040,0.01153657,90636.0,90629.0,0.01103399]
[1768076779241,0.01153657,90636.0,90628.0,0.01103411]
[1768076780403,0.01153657,90636.0,90630.0,0.01103387]
[1768076780753,0.01153657,90636.0,90629.0,0.01103399]
[1768076780961,0.01153657,90636.0,90628.0,0.01103411]
[1768076781958,0.01153657,90636.0,90629.0,0.01103399]
[1768076782346,0.01153657,90636.0,90630.0,0.01103387]
[1768076782976,0.01153657,90636.0,90628.0,0.01103411]
[1768076783568,0.01153657,90636.0,90629.0,0.01103399]
[1768076784741,0.01153657,90636.0,90628.0,0.01103411]
[1768076785161,0.01153657,90636.0,90627.0,0.06620499]
[1768076786230,0.01153657,90636.0,90629.0,0.01103399]
[1768076786658,0.01153657,90636.0,90630.0,0.01103387]
[1768076786786,0.01153657,90636.0,90629.0,0.01103399]
[1768076787309,0.01153657,90636.0,90630.0,0.01103387]
[1768076791264,0.01153657,90636.0,90629.0,0.01103399]
[1768076791467,0.01153657,90636.0,90630.0,0.01103387]
[1768076792194,0.01153657,90636.0,90629.0,0.01103399]
[1768076793656,0.01153657,90636.0,90630.0,0.01103387]
[1768076793876,0.01153657,90636.0,90628.0,0.01103411]
[1768076793877,0.01153657,90636.0,90629.0,0.01103399]
[1768076794485,0.01153657,90636.0,90628.0,0.01103411]
[1768076795487,0.01153657,90636.0,90629.0,0.01103399]
[1768076796343,0.01153657,90636.0,90628.0,0.01103411]
[1768076796554,0.01153657,90636.0,90629.0,0.01103399]
[1768076797633,0.01153657,90636.0,90627.0,0.06620541]
[1768076798038,0.00050221,90636.0,90629.0,0.01103399]
[1768076799453,0.00050221,90636.0,90628.0,0.01103411]
[1768076800485,0.00050221,90636.0,90629.0,0.01103399]
[1768076800681,0.00050221,90636.0,90630.0,0.01103387]
[1768076801556,0.00050221,90636.0,90629.0,0.01103399]
[1768076803000,0.00050221,90636.0,90628.0,0.01103411]
[1768076803198,0.00050221,90636.0,90629.0,0.01103399]
[1768076804347,0.00050221,90636.0,90628.0,0.01103411]
[1768076804753,0.00050221,90636.0,90629.0,0.01103399]
[1768076805339,0.00050221,90636.0,90630.0,0.01103387]
[1768076806323,0.00050221,90636.0,90629.0,0.01103399]
[1768076807755,0.00050221,90636.0,90627.0,0.01103423]
[1768076809360,0.00050221,90636.0,90628.0,0.01103411]
[1768076812355,0.00050221,90636.0,90630.0,0.01103387]
[1768076813302,0.00050221,90636.0,90629.0,0.01103399]
[1768076813518,0.00050221,90636.0,90630.0,0.01103387]
[1768076813686,0.00050221,90636.0,90629.0,0.01103399]
[1768076815838,0.00050221,90636.0,90630.0,0.01103387]
[1768076816691,0.00050221,90636.0,90629.0,0.01103399]
[1768076817263,0.00050221,90636.0,90630.0,0.01103387]
[1768076818117,0.00050221,90636.0,90629.0,0.01103399]
[1768076818704,0.00050221,90636.0,90630.0,0.01103387]
[1768076820534,0.00050221,90636.0,90629.0,0.01103399]
[1768076820741,0.00050221,90636.0,90628.0,0.01103411]
[1768076821150,0.00050221,90636.0,90627.0,0.01103423]
[1768076821714,0.00050221,90636.0,90628.0,0.01103411]
[1768076822959,0.00050221,90636.0,90629.0,0.01103399]
[1768076823757,0.00050221,90636.0,90628.0,0.01103411]
[1768076823963,0.00050221,90636.0,90629.0,0.01103399]
[1768076824300,0.00050221,90636.0,90628.0,0.01103411]
[1768076826554,0.00050221,90636.0,90629.0,0.01103399]
[1768076829637,0.00050221,90636.0,90628.0,0.01103411]
[1768076830028,0.00050221,90636.0,90629.0,0.01103399]
[1768076830236,0.00050221,90636.0,90628.0,0.01103411]
[1768076831750,0.00050221,90636.0,90629.0,0.01103399]
[1768076831922,0.00050221,90636.0,90628.0,0.01103411]
[1768076833345,0.00050221,90636.0,90629.0,0.01103399]
[1768076833545,0.00050221,90636.0,90628.0,0.01103411]
[1768076833767,0.00050221,90636.0,90629.0,0.01103399]
[1768076833960,0.00050221,90636.0,90628.0,0.01103411]
[1768076834343,0.00050221,90636.0,90629.0,0.01103399]
[1768076834542,0.00050221,90636.0,90628.0,0.01103411]
[1768076834783,0.00050221,90636.0,90629.0,0.01103399]
[1768076835367,0.00050221,90636.0,90628.0,0.01103411]
[1768076839886,0.00050221,90636.0,90629.0,0.01103399]
[1768076840585,0.00050221,90636.0,90628.0,0.01103411]
[1768076841408,0.00050221,90636.0,90629.0,0.01103399]
[1768076842204,0.00050221,90636.0,90628.0,0.01103411]
[1768076842618,0.00050221,90636.0,90629.0,0.01103399]
[1768076843194,0.00050221,90636.0,90625.0,0.10349427]
[1768076843666,0.00050221,90636.0,90627.0,0.01103423]
[1768076844206,0.00050221,90636.0,90628.0,0.01103411]
[1768076844635,0.00050221,90636.0,90627.0,0.01103423]
[1768076845123,0.00050221,90636.0,90628.0,0.01103411]
[1768076845731,0.00050221,90636.0,90627.0,0.01103423]
[1768076846261,0.00050221,90636.0,90628.0,0.01103411]
[1768076847129,0.00050221,90636.0,90627.0,0.01103423]
[1768076848130,0.00050221,90636.0,90628.0,0.01103411]
[1768076848885,0.00050221,90636.0,90627.0,0.01103423]
[1768076850284,0.00050221,90636.0,90626.0,0.01103436]
[1768076850437,0.00050221,90636.0,90629.0,0.01103399]
[1768076864662,0.00050221,90636.0,90627.0,0.01103423]
[1768076866008,0.00050221,90636.0,90628.0,0.01103411]
[1768076867156,0.00050221,90636.0,90627.0,0.01103423]
[1768076868398,0.00050221,90636.0,90628.0,0.01103411]
[1768076869822,0.00050221,90636.0,90627.0,0.01103423]
[1768076870490,0.00050221,90636.0,90626.0,0.01103436]
[1768076870645,0.00050221,90636.0,90628.0,0.01103411]
[1768076870845,0.00050221,90636.0,90627.0,0.01103423]
[1768076871373,0.00050221,90636.0,90628.0,0.01103411]
[1768076875905,0.00050221,90636.0,90629.0,0.01103399]
[1768076876096,0.00050221,90636.0,90628.0,0.01103411]
[1768076877298,0.00050221,90636.0,90629.0,0.01103399]
[1768076877499,0.00050221,90636.0,90628.0,0.01103411]
[1768076881550,0.00050221,90636.0,90627.0,0.01103423]
[1768076882259,0.00050221,90636.0,90628.0,0.01103411]
[1768076882662,0.00050221,90636.0,90627.0,0.01103423]
[1768076882862,0.00050221,90636.0,90628.0,0.01103411]
[1768076883665,0.00050221,90636.0,90629.0,0.01103399]
[1768076884306,0.00050221,90636.0,90628.0,0.01103411]
[1768076886166,0.00050221,90636.0,90629.0,0.01103399]
[1768076886944,0.00050221,90636.0,90628.0,0.01103411]
[1768076887371,0.00050221,90636.0,90629.0,0.01103399]
[1768076887922,0.00050221,90636.0,90628.0,0.01103411]
[1768076888848,0.00050221,90636.0,90627.0,0.01103423]
[1768076889205,0.00050221,90636.0,90628.0,0.01103411]
[1768076889998,0.00050221,90636.0,90627.0,0.01103423]
[1768076890586,0.00050221,90636.0,90628.0,0.01103411]
[1768076892047,0.00050221,90636.0,90629.0,0.01103399]
[1768076892442,0.00050221,90636.0,90628.0,0.01103411]
[1768076892600,0.00050221,90636.0,90629.0,0.01103399]
[1768076892802,0.00050221,90636.0,90628.0,0.01103411]
[1768076893736,0.00050221,90636.0,90627.0,0.01103423]
[1768076894116,0.00050221,90636.0,90628.0,0.01103411]
[1768076894542,0.00050221,90636.0,90627.0,0.01103423]
[1768076894745,0.00050221,90636.0,90628.0,0.01103411]
[1768076896715,0.00050221,90636.0,90627.0,0.01103423]
[1768076897934,0.00050221,90636.0,90628.0,0.01103411]
[1768076899036,0.00050221,90636.0,90627.0,0.01103423]
[1768076899478,0.00050221,90636.0,90628.0,0.01103411]
[1768076900324,0.00050221,90636.0,90629.0,0.01103399]
[1768076900980,0.00050221,90636.0,90628.0,0.01103411]
[1768076902523,0.00050221,90636.0,90629.0,0.01103399]
[1768076904111,0.00050221,90636.0,90628.0,0.01103411]
[1768076904318,0.00050221,90636.0,90627.0,0.01103423]
[1768076906047,0.00050221,90636.0,90628.0,0.01103411]
[1768076906924,0.00050221,90636.0,90627.0,0.01103423]
[1768076908281,0.00050221,90636.0,90628.0,0.01103411]
[1768076909090,0.00050221,90636.0,90627.0,0.01103423]
[1768076909661,0.00050221,90636.0,90628.0,0.01103411]
[1768076910800,0.00050221,90636.0,90627.0,0.01103423]
[1768076911028,0.00050221,90636.0,90628.0,0.01103411]
[1768076911587,0.00050221,90636.0,90627.0,0.01103423]
[1768076911787,0.00050221,90636.0,90628.0,0.01103411]
[1768076912809,0.00050221,90636.0,90627.0,0.01103423]
[1768076913801,0.00050221,90636.0,90628.0,0.01103411]
[1768076914005,0.00050221,90636.0,90627.0,0.01103423]
[1768076914212,0.00050221,90636.0,90628.0,0.01103411]
[1768076914621,0.00050221,90636.0,90627.0,0.01103423]
[1768076915040,0.00050221,90636.0,90628.0,0.01103411]
[1768076915960,0.00050221,90636.0,90627.0,0.01103423]
[1768076916169,0.00050221,90636.0,90628.0,0.01103411]
[1768076916503,0.00050221,90636.0,90626.0,0.01103436]
[1768076917345,0.00050221,90636.0,90627.0,0.01103423]
[1768076919586,0.00050221,90636.0,90626.0,0.01103436]
[1768076919781,0.05030898,90636.0,90625.0,0.01103448]
[1768076920794,0.05030898,90636.0,90626.0,0.01103436]
[1768076924079,0.00050221,90636.0,90626.0,0.01103436]
[1768076931639,0.00050221,90636.0,90625.0,0.01103448]
[1768076934250,0.00050221,90636.0,90624.0,0.05956035]
[1768076934437,0.00050221,90636.0,90625.0,0.01103448]
[1768076938668,0.00050221,90636.0,90626.0,0.01103436]
[1768076939616,0.00050221,90636.0,90625.0,0.01103448]
[1768076939957,0.00050221,90636.0,90626.0,0.01103436]
[1768076940274,0.00050221,90636.0,90625.0,0.01103448]
[1768076941403,0.00050221,90636.0,90626.0,0.01103436]
[1768076941847,0.00050221,90636.0,90625.0,0.01103448]
[1768076942841,0.00050221,90636.0,90626.0,0.01103436]
[1768076943249,0.04765806,90636.0,90626.0,0.01103436]
[1768076945569,0.04765806,90636.0,90625.0,0.01103448]
[1768076947277,0.00050221,90636.0,90625.0,0.01103448]
[1768076951865,0.00050221,90636.0,90626.0,0.01103436]
[1768076952242,0.00050221,90636.0,90625.0,0.01103448]
[1768076957341,0.00050221,90636.0,90626.0,0.01103436]
[1768076958071,0.00050221,90636.0,90625.0,0.01103448]
[1768076958675,0.00050221,90636.0,90626.0,0.01103436]
[1768076961777,0.00050221,90636.0,90627.0,0.01103423]
[1768076961984,0.04991628,90636.0,90627.0,0.01103423]
[1768076962184,0.00050221,90636.0,90627.0,0.01103423]
[1768076962426,0.00050221,90636.0,90626.0,0.01103436]
[1768076962632,0.00050221,90636.0,90625.0,0.01103448]
[1768076965705,0.00050221,90636.0,90626.0,0.01103436]
[1768076967175,0.00050221,90636.0,90625.0,0.01103448]
[1768076968247,0.00050221,90636.0,90626.0,0.01103436]
[1768076977290,0.00050221,90636.0,90625.0,0.05856067]
[1768076978094,0.00050221,90636.0,90626.0,0.01103436]
[1768076978506,0.00050221,90636.0,90625.0,0.05856067]
[1768076982986,0.00050221,90636.0,90625.0,0.04752619]
[1768076983686,0.00050221,90636.0,90625.0,0.05856067]
[1768076984630,0.00050221,90636.0,90625.0,0.04752619]
[1768076984986,0.00050221,90636.0,90625.0,0.05856067]
[1768076987001,0.00050221,90636.0,90626.0,0.01103436]
[1768076987235,0.00050221,90636.0,90625.0,0.05856067]
[1768076987671,0.00050221,90636.0,90626.0,0.01103436]
[1768076989184,0.00050221,90636.0,90625.0,0.05856067]
[1768076990007,0.00050221,90636.0,90626.0,0.01103436]
[1768076990390,0.00050221,90636.0,90625.0,0.05856067]
[1768076990575,0.00050221,90636.0,90626.0,0.01103436]
[1768076998937,0.00050221,90636.0,90625.0,0.05856067]
[1768076999958,0.00050221,90636.0,90625.0,0.04752619]
[1768077000125,0.00050221,90636.0,90626.0,0.01103436]
[1768077000543,0.00050221,90636.0,90624.0,0.05607826]
[1768077001024,0.00050221,90636.0,90625.0,0.01103448]
[1768077002285,0.00050221,90636.0,90626.0,0.01103436]
[1768077002464,0.00050221,90636.0,90625.0,0.01103448]
[1768077004547,0.00050221,90636.0,90624.0,0.05607826]
[1768077004951,0.00050221,90636.0,90625.0,0.01103448]
[1768077005158,0.00050221,90636.0,90624.0,0.05607826]
[1768077005360,0.00050221,90636.0,90625.0,0.01103448]
[1768077005618,0.00050221,90636.0,90626.0,0.01103436]
[1768077006602,0.00050221,90636.0,90625.0,0.01103448]
[1768077006952,0.00050221,90636.0,90624.0,0.05607826]
[1768077009747,0.00050221,90636.0,90624.0,0.04504366]
[1768077010162,0.01153535,90636.0,90624.0,0.04504366]
[1768077010483,0.00050221,90636.0,90624.0,0.05607826]
[1768077010890,0.04666266,90635.0,90624.0,0.01107733]
[1768077011280,0.04666266,90635.0,90624.0,4.273e-05]
[1768077011512,0.04666266,90635.0,90624.0,0.01107733]
[1768077012841,0.04666266,90635.0,90624.0,4.273e-05]
[1768077013038,0.04666266,90635.0,90624.0,0.01107733]
[1768077015199,0.04666266,90635.0,90624.0,4.273e-05]
[1768077016198,0.00050221,90636.0,90624.0,0.01107733]
[1768077018051,0.00050221,90636.0,90624.0,4.273e-05]
[1768077018388,0.00050221,90636.0,90624.0,0.01107733]
[1768077019434,0.01153535,90636.0,90624.0,4.273e-05]
[1768077020262,0.00050221,90636.0,90624.0,0.01107733]
[1768077024630,0.00050221,90636.0,90626.0,0.01103436]
[1768077025741,0.00050221,90636.0,90625.0,0.01103448]
[1768077026049,0.00050221,90636.0,90626.0,0.01103436]
[1768077026342,0.00050221,90636.0,90625.0,0.01103448]
[1768077026685,0.00050221,90636.0,90626.0,0.01103436]
[1768077026884,0.00050221,90636.0,90625.0,0.01103448]
[1768077027302,0.00050221,90636.0,90626.0,0.01103436]
[1768077027669,0.00050221,90636.0,90625.0,0.01103448]
[1768077028522,0.00050221,90636.0,90624.0,0.01107733]